lending/lending_fUSD_20241005
["ID","MTS","AMOUNT","RATE_DAILY","PERIOD"]
[339897529,1728147076566,-500.0,0.00039178,30]
[339897530,1728147076575,-500.0,0.00039178,30]
[339897531,1728147076583,-500.0,0.00039178,30]
[339897532,1728147076593,-500.0,0.00039178,30]
[339897533,1728147076602,-500.0,0.00039178,30]
[339897534,1728147076612,-877.47,0.00039178,30]
[339897535,1728147076621,-500.0,0.00039178,30]
[339897536,1728147076631,-500.0,0.00039178,30]
[339897537,1728147076640,-500.0,0.00039178,30]
[339897538,1728147076650,-151.0,0.00039178,14]
[339897539,1728147076659,-994.36,0.00039178,30]
[339897540,1728147076669,-500.0,0.00039178,30]
[339897541,1728147076679,-1035.51,0.00039178,30]
[339897543,1728147076688,-500.0,0.00039178,30]
[339897545,1728147076698,-500.0,0.00039178,30]
[339897547,1728147076708,-500.0,0.00039178,30]
[339897549,1728147076717,-989.87,0.00039178,30]
[339897550,1728147076726,-500.0,0.00039178,30]
[339897551,1728147076735,-500.0,0.00039178,30]
[339897552,1728147076744,-871.55,0.00039178,30]
[339897553,1728147076753,-500.0,0.00039178,30]
[339897554,1728147076763,-1333.03,0.00039178,30]
[339897555,1728147076772,-500.0,0.00039178,30]
[339897556,1728147076782,-925.19,0.00039178,30]
[339897557,1728147076791,-500.0,0.00039178,30]
[339897558,1728147076800,-500.0,0.00039178,30]
[339897559,1728147076810,-1502.02,0.00039178,30]
[339897560,1728147076819,-889.77,0.00039178,30]
[339897561,1728147076829,-635.82,0.00039178,30]
[339897562,1728147076838,-600.24,0.00039178,30]
[339897563,1728147076847,-500.0,0.00039178,30]
[339897564,1728147076856,-502.66921603,0.00039178,30]
[339897565,1728147076865,-717.54,0.00039178,30]
[339897566,1728147076875,-963.18,0.00039178,30]
[339897567,1728147076884,-500.0,0.00039178,5]
[339897568,1728147076894,-551.7,0.00039178,30]
[339897569,1728147076903,-584.17,0.00039178,30]
[339897570,1728147076912,-1246.88,0.00039178,30]
[339897571,1728147076922,-518.72,0.00039178,30]
[339897572,1728147076931,-500.0,0.00039178,30]
[339897573,1728147076940,-1472.61,0.00039178,30]
[339897574,1728147076950,-500.0,0.00039178,30]
[339897575,1728147076959,-500.0,0.00039178,30]
[339897576,1728147076969,-500.0,0.00039178,30]
[339897577,1728147076978,-500.0,0.00039178,30]
[339897578,1728147076987,-1465.78,0.00039178,30]
[339897579,1728147076997,-500.0,0.00039178,30]
[339897580,1728147077006,-500.0,0.00039178,30]
[339897581,1728147077015,-848.55,0.00039178,30]
[339897582,1728147077024,-500.0,0.00039178,30]
[339897583,1728147077033,-500.0,0.00039178,30]
[339897584,1728147077042,-500.0,0.00039178,30]
[339897585,1728147077052,-779.41,0.00039178,30]
[339897586,1728147077061,-500.0,0.00039178,30]
[339897587,1728147077070,-500.0,0.00039178,30]
[339897588,1728147077080,-500.0,0.00039178,30]
[339897589,1728147077089,-500.0,0.00039178,30]
[339897590,1728147077099,-777.28,0.00039178,30]
[339897591,1728147077108,-500.0,0.00039178,30]
[339897593,1728147077117,-500.0,0.00039178,30]
[339897595,1728147077126,-1683.21,0.00039178,30]
[339897597,1728147077135,-500.0,0.00039178,30]
[339897598,1728147077144,-500.0,0.00039178,30]
[339897600,1728147077153,-500.0,0.00039178,30]
[339897602,1728147077162,-1078.6,0.00039178,30]
[339897604,1728147077171,-1725.49,0.00039178,30]
[339897606,1728147077180,-500.0,0.00039178,30]
[339897608,1728147077190,-500.0,0.00039178,30]
[339897610,1728147077199,-587.6,0.00039178,30]
[339897611,1728147077208,-659.83,0.00039178,30]
[339897613,1728147077217,-600.74,0.00039178,30]
[339897616,1728147077226,-500.0,0.00039178,30]
[339897618,1728147077236,-500.0,0.00039178,30]
[339897620,1728147077245,-500.0,0.00039178,30]
[339897622,1728147077255,-706.43,0.00039178,30]
[339897624,1728147077264,-500.0,0.00039178,30]
[339897626,1728147077274,-1054.81,0.00039178,30]
[339897628,1728147077283,-500.0,0.00039178,30]
[339897630,1728147077292,-500.0,0.00039178,30]
[339897632,1728147077302,-500.0,0.00039178,30]
[339897634,1728147077311,-1280.81,0.00039178,30]
[339897636,1728147077320,-500.0,0.00039178,30]
[339897638,1728147077539,-500.0,0.00039178,30]
[339897640,1728147077549,-213.52572242,0.00039178,30]
[339897642,1728147077559,-500.0,0.00039178,30]
[339897644,1728147077568,-1363.15,0.00039178,30]
[339897646,1728147077577,-500.0,0.00039178,30]
[339897648,1728147077586,-500.0,0.00039178,30]
[339897650,1728147077595,-500.0,0.00039178,30]
[339897652,1728147077604,-500.0,0.00039178,30]
[339897654,1728147077614,-500.0,0.00039178,30]
[339897656,1728147077623,-905.57,0.00039178,30]
[339897657,1728147077632,-500.0,0.00039178,30]
[339897659,1728147077641,-500.0,0.00039178,30]
[339897661,1728147077651,-1284.12,0.00039178,30]
[339897663,1728147077661,-1235.27,0.00039178,30]
[339897665,1728147077670,-500.0,0.00039178,30]
[339897667,1728147077680,-500.0,0.00039178,30]
[339897669,1728147077689,-500.0,0.00039178,30]
[339897671,1728147077698,-500.0,0.00039178,30]
[339897672,1728147077707,-637.05,0.00039178,30]
[339897675,1728147077717,-500.0,0.00039178,30]
[339897677,1728147077726,-500.0,0.00039178,30]
[339897679,1728147077735,-1285.68,0.00039178,30]
[339897681,1728147077746,-503.25,0.00039178,30]
[339897683,1728147077756,-500.0,0.00039178,30]
[339897685,1728147077765,-500.0,0.00039178,30]
[339897687,1728147077774,-500.0,0.00039178,30]
[339897689,1728147077784,-500.0,0.00039178,30]
[339897691,1728147077793,-500.0,0.00039178,30]
[339897693,1728147077803,-938.91,0.00039178,30]
[339897695,1728147077813,-500.0,0.00039178,30]
[339897697,1728147077822,-500.0,0.00039178,30]
[339897699,1728147077832,-500.0,0.00039178,30]
[339897701,1728147077842,-500.0,0.00039178,30]
[339897703,1728147077851,-669.13,0.00039178,30]
[339897705,1728147077860,-1214.24,0.00039178,30]
[339897707,1728147077869,-950.76,0.00039178,30]
[339897709,1728147077879,-500.0,0.00039178,30]
[339897711,1728147077888,-1555.77,0.00039178,30]
[339897713,1728147077897,-1046.87,0.00039178,30]
[339897715,1728147077908,-500.0,0.00039178,30]
[339897717,1728147077917,-500.0,0.00039178,30]
[339897719,1728147077926,-1000.0,0.00039178,30]
[339897721,1728147077935,-500.0,0.00039178,30]
[339897722,1728147077944,-766.5,0.00039178,30]
[339897725,1728147077954,-1076.33,0.00039178,30]
[339897726,1728147077964,-500.0,0.00039178,30]
[339897728,1728147077973,-500.0,0.00039178,30]
[339897730,1728147077983,-500.0,0.00039178,30]
[339897732,1728147077992,-500.0,0.00039178,30]
[339897734,1728147078001,-773.6,0.00039178,30]
[339897736,1728147078011,-500.0,0.00039178,30]
[339897738,1728147078020,-956.46,0.00039178,30]
[339897740,1728147078029,-500.0,0.00039178,30]
[339897742,1728147078039,-500.0,0.00039178,30]
[339897744,1728147078048,-500.0,0.00039178,30]
[339897746,1728147078057,-500.0,0.00039178,2]
[339897748,1728147078066,-500.0,0.00039178,30]
[339897750,1728147078076,-500.0,0.00039178,30]
[339897752,1728147078085,-500.0,0.00039178,30]
[339897754,1728147078094,-500.0,0.00039178,30]
[339897756,1728147078104,-500.0,0.00039178,30]
[339897759,1728147078114,-1442.35,0.00039178,30]
[339897761,1728147078124,-1211.84,0.00039178,30]
[339897763,1728147078133,-500.0,0.00039178,30]
[339897765,1728147078142,-500.0,0.00039178,30]
[339897767,1728147078152,-658.69,0.00039178,30]
[339897769,1728147078161,-1361.72,0.00039178,24]
[339897771,1728147078171,-500.0,0.00039178,30]
[339897773,1728147078181,-1120.5,0.00039178,30]
[339897783,1728147078267,-500.0,0.00039178,30]
[339897785,1728147078277,-500.0,0.00039178,30]
[339897787,1728147078287,-500.0,0.00039178,30]
[339897789,1728147078297,-500.0,0.00039178,30]
[339897791,1728147078307,-1128.3,0.00039178,30]
[339897793,1728147078318,-500.0,0.00039178,30]
[339897795,1728147078327,-500.0,0.00039178,30]
[339897797,1728147078341,-500.0,0.00039178,30]
[339897799,1728147078350,-500.0,0.00039178,30]
[339897801,1728147078360,-723.77,0.00039178,30]
[339897803,1728147078370,-627.25,0.00039178,30]
[339897805,1728147078379,-500.0,0.00039178,30]
[339897807,1728147078388,-500.0,0.00039178,30]
[339897808,1728147078398,-1143.9,0.00039178,30]
[339897810,1728147078408,-502.75,0.00039178,30]
[339897813,1728147078418,-500.0,0.00039178,30]
[339897814,1728147078427,-1054.07,0.00039178,30]
[339897816,1728147078437,-500.0,0.00039178,30]
[339897818,1728147078446,-500.0,0.00039178,30]
[339897820,1728147078455,-1458.38,0.00039178,30]
[339897823,1728147078469,-500.0,0.00039178,30]
[339897825,1728147078478,-500.0,0.00039178,30]
[339897826,1728147078487,-680.05,0.00039178,30]
[339897828,1728147078496,-151.0,0.00039178,14]
[339897830,1728147078505,-2308.66,0.00039178,30]
[339897832,1728147078515,-526.17,0.00039178,30]
[339897834,1728147078524,-500.0,0.00039178,30]
[339897836,1728147078533,-958.76,0.00039178,30]
[339897839,1728147078543,-500.0,0.00039178,30]
[339897841,1728147078552,-500.0,0.00039178,30]
[339897843,1728147078562,-280.088207,0.00039178,14]
[339897844,1728147078571,-510.66107905,0.00039178,30]
[339897846,1728147078581,-521.35,0.00039178,30]
[339897849,1728147078590,-772.75,0.00039178,30]
[339897850,1728147078599,-668.383726,0.00039178,14]
[339897852,1728147078608,-500.0,0.00039178,30]
[339897854,1728147078618,-957.22,0.00039178,30]
[339897856,1728147078627,-500.0,0.00039178,30]
[339897858,1728147078637,-668.383726,0.00039178,14]
[339897860,1728147078646,-500.0,0.00039178,30]
[339897862,1728147078655,-1182.56,0.00039178,30]
[339897864,1728147078664,-658.49,0.00039178,30]
[339897866,1728147078673,-500.0,0.00039178,30]
[339897868,1728147078683,-500.0,0.00039178,30]
[339897870,1728147078693,-500.0,0.00039178,30]
[339897872,1728147078702,-500.0,0.00039178,30]
[339897874,1728147078721,-500.0,0.00039178,30]
[339897876,1728147078731,-500.0,0.00039178,30]
[339897878,1728147078741,-764.47,0.00039178,30]
[339897880,1728147078751,-500.0,0.00039178,30]
[339897882,1728147078760,-500.0,0.00039178,30]
[339897884,1728147078770,-500.0,0.00039178,30]
[339897886,1728147078780,-1230.05,0.00039178,30]
[339897888,1728147078789,-500.0,0.00039178,30]
[339897890,1728147078799,-500.0,0.00039178,30]
[339897892,1728147078810,-500.0,0.00039178,30]
[339897895,1728147078820,-872.43,0.00039178,30]
[339897897,1728147078829,-500.0,0.00039178,30]
[339897899,1728147078839,-500.0,0.00039178,30]
[339897901,1728147078849,-500.0,0.00039178,30]
[339897903,1728147078859,-611.65,0.00039178,30]
[339897905,1728147078868,-500.0,0.00039178,30]
[339897906,1728147078879,-500.0,0.00039178,30]
[339897907,1728147078889,-842.7,0.00039178,30]
[339897909,1728147078899,-500.0,0.00039178,30]
[339897911,1728147078908,-500.0,0.00039178,30]
[339897913,1728147078918,-821.45,0.00039178,30]
[339897915,1728147078927,-1020.54,0.00039178,30]
[339897917,1728147078936,-500.0,0.00039178,30]
[339897919,1728147078947,-500.0,0.00039178,30]
[339897921,1728147078959,-500.0,0.00039178,30]
[339897923,1728147078974,-500.0,0.00039178,30]
[339897924,1728147078983,-508.95,0.00039178,30]
[339897926,1728147078992,-500.0,0.00039178,30]
[339897928,1728147079002,-504.55535299,0.00039178,30]
[339897930,1728147079011,-500.0,0.00039178,30]
[339897932,1728147079020,-500.0,0.00039178,30]
[339897934,1728147079030,-500.0,0.00039178,30]
[339897936,1728147079039,-500.0,0.00039178,30]
[339897938,1728147079049,-1095.31,0.00039178,30]
[339897940,1728147079058,-1129.38,0.00039178,30]
[339897942,1728147079068,-500.0,0.00039178,30]
[339897944,1728147079078,-500.0,0.00039178,30]
[339897946,1728147079087,-500.0,0.00039178,30]
[339897948,1728147079097,-500.0,0.00039178,30]
[339897950,1728147079106,-500.0,0.00039178,30]
[339897952,1728147079116,-500.0,0.00039178,30]
[339897954,1728147079125,-500.0,0.00039178,30]
[339897956,1728147079134,-500.0,0.00039178,30]
[339897958,1728147079144,-794.7,0.00039178,30]
[339897960,1728147079153,-500.0,0.00039178,30]
[339897962,1728147079162,-500.0,0.00039178,30]
[339897964,1728147079171,-500.0,0.00039178,30]
[339897966,1728147079181,-830.85,0.00039178,30]
[339897968,1728147079189,-500.0,0.00039178,30]
[339897970,1728147079199,-626.12007575,0.00039178,30]
[339897972,1728147079210,-1027.89,0.00039178,30]
[339897973,1728147079219,-500.0,0.00039178,30]
[339897976,1728147079229,-500.0,0.00039178,30]
[339897978,1728147079239,-1487.21,0.00039178,30]
[339897979,1728147079248,-500.0,0.00039178,30]
[339897981,1728147079258,-1056.64,0.00039178,30]
[339897983,1728147079268,-309.02895654,0.00039178,30]
[339897985,1728147079278,-500.0,0.00039178,30]
[339897987,1728147079287,-500.0,0.00039178,30]
[339897989,1728147079296,-500.0,0.00039178,30]
[339897991,1728147079306,-500.0,0.00039178,30]
[339897993,1728147079315,-966.23,0.00039178,30]
[339897995,1728147079324,-500.0,0.00039178,30]
[339897997,1728147079335,-500.0,0.00039178,30]
[339897998,1728147079344,-1402.9,0.00039178,30]
[339897999,1728147079354,-500.0,0.00039178,30]
[339898000,1728147079363,-373.25839239,0.00039178,30]
[339898001,1728147079373,-155.637596,0.00039178,30]
[339898002,1728147079382,-500.0,0.00039178,30]
[339898003,1728147079392,-504.22090763,0.00039178,30]
[339898004,1728147079401,-500.0,0.00039178,30]
[339898005,1728147079411,-150.341723,0.00039178,30]
[339898006,1728147079421,-500.0,0.00039178,30]
[339898007,1728147079431,-500.0,0.00039178,30]
[339898008,1728147079440,-500.0,0.00039178,30]
[339898009,1728147079449,-500.0,0.00039178,30]
[339898010,1728147079459,-500.0,0.00039178,30]
[339898011,1728147079468,-500.0,0.00039178,30]
[339898012,1728147079477,-500.0,0.00039178,30]
[339898013,1728147079486,-500.0,0.00039178,30]
[339898014,1728147079496,-605.78,0.00039178,30]
[339898015,1728147079505,-534.83,0.00039178,30]
[339898016,1728147079514,-540.58,0.00039178,30]
[339898017,1728147079524,-1181.15,0.00039178,30]
[339898018,1728147079534,-500.0,0.00039178,30]
[339898019,1728147079543,-500.0,0.00039178,30]
[339898020,1728147079553,-567.65,0.00039178,30]
[339898021,1728147079562,-602.72,0.00039178,30]
[339898022,1728147079572,-942.98,0.00039178,30]
[339898023,1728147079582,-500.0,0.00039178,30]
[339898024,1728147079591,-500.0,0.00039178,30]
[339898025,1728147079600,-739.94,0.00039178,30]
[339898027,1728147079609,-500.0,0.00039178,30]
[339898028,1728147079619,-500.0,0.00039178,30]
[339898030,1728147079628,-960.92,0.00039178,30]
[339898032,1728147079638,-1122.04,0.00039178,30]
[339898034,1728147079647,-500.0,0.00039178,30]
[339898035,1728147079656,-500.0,0.00039178,30]
[339898036,1728147079665,-1176.15,0.00039178,30]
[339898037,1728147079675,-328.70741534,0.00039178,30]
[339898038,1728147079684,-500.0,0.00039178,30]
[339898039,1728147079693,-500.0,0.00039178,30]
[339898040,1728147079703,-500.0,0.00039178,30]
[339898041,1728147079715,-500.0,0.00039178,30]
[339898042,1728147079724,-1087.37,0.00039178,30]
[339898043,1728147079733,-500.0,0.00039178,30]
[339898044,1728147079742,-548.14,0.00039178,30]
[339898045,1728147079752,-255.38607,0.00039178,30]
[339898046,1728147079761,-894.57,0.00039178,30]
[339898047,1728147079770,-500.0,0.00039178,30]
[339898048,1728147079779,-808.84,0.00039178,30]
[339898049,1728147079789,-500.0,0.00039178,30]
[339898050,1728147079798,-500.0,0.00039178,30]
[339898051,1728147079807,-500.0,0.00039178,30]
[339898052,1728147079816,-500.0,0.00039178,30]
[339898053,1728147079826,-500.0,0.00039178,2]
[339898054,1728147079835,-500.0,0.00039178,30]
[339898055,1728147079844,-744.22,0.00039178,30]
[339898056,1728147079854,-500.0,0.00039178,30]
[339898057,1728147079863,-795.88,0.00039178,30]
[339898058,1728147079873,-1106.31,0.00039178,30]
[339898059,1728147079882,-500.0,0.00039178,30]
[339898060,1728147079891,-500.0,0.00039178,30]
[339898061,1728147079900,-500.0,0.00039178,30]
[339898062,1728147079909,-719.91,0.00039178,30]
[339898063,1728147079918,-500.0,0.00039178,30]
[339898064,1728147079927,-912.73,0.00039178,30]
[339898065,1728147079936,-789.28,0.00039178,30]
[339898066,1728147079945,-519.73,0.00039178,30]
[339898067,1728147079954,-500.0,0.00039178,30]
[339898068,1728147079965,-500.0,0.00039178,30]
[339898069,1728147079975,-1177.68,0.00039178,30]
[339898070,1728147079983,-500.0,0.00039178,30]
[339898071,1728147079991,-780.08,0.00039178,14]
[339898072,1728147080000,-500.0,0.00039178,30]
[339898073,1728147080009,-750.93,0.00039178,30]
[339898074,1728147080018,-500.0,0.00039178,30]
[339898075,1728147080027,-535.24,0.00039178,30]
[339898076,1728147080036,-669.75,0.00039178,30]
[339898077,1728147080045,-704.169704,0.00039178,30]
[339898078,1728147080054,-500.0,0.00039178,30]
[339898079,1728147080063,-1092.22,0.00039178,30]
[339898081,1728147080072,-500.0,0.00039178,30]
[339898083,1728147080081,-1378.36,0.00039178,30]
[339898085,1728147080090,-745.48,0.00039178,30]
[339898087,1728147080099,-500.0,0.00039178,30]
[339898089,1728147080108,-500.0,0.00039178,30]
[339898091,1728147080117,-500.0,0.00039178,30]
[339898093,1728147080127,-500.0,0.00039178,30]
[339898095,1728147080136,-500.0,0.00039178,30]
[339898097,1728147080145,-500.0,0.00039178,30]
[339898099,1728147080155,-500.0,0.00039178,30]
[339898101,1728147080164,-500.0,0.00039178,30]
[339898102,1728147080174,-500.0,0.00039178,30]
[339898103,1728147080183,-1306.31,0.00039178,30]
[339898105,1728147080192,-500.0,0.00039178,30]
[339898107,1728147080201,-500.0,0.00039178,30]
[339898108,1728147080212,-524.51,0.00039178,30]
[339898109,1728147080220,-500.0,0.00039178,30]
[339898110,1728147080230,-500.0,0.00039178,30]
[339898111,1728147080239,-500.0,0.00039178,30]
[339898112,1728147080248,-500.0,0.00039178,30]
[339898113,1728147080257,-513.93,0.00039178,30]
[339898114,1728147080266,-500.0,0.00039178,30]
[339898115,1728147080275,-500.0,0.00039178,30]
[339898116,1728147080284,-645.77,0.00039178,30]
[339898117,1728147080294,-833.87,0.00039178,30]
[339898118,1728147080303,-1307.93,0.00039178,30]
[339898119,1728147080312,-500.0,0.00039178,30]
[339898120,1728147080321,-500.0,0.00039178,30]
[339898121,1728147080334,-176.90765147,0.00039178,30]
[339898122,1728147080343,-1199.16,0.00039178,30]
[339898123,1728147080352,-500.0,0.00039178,30]
[339898124,1728147080362,-500.0,0.00039178,30]
[339898125,1728147080372,-500.0,0.00039178,30]
[339898126,1728147080381,-500.0,0.00039178,30]
[339898127,1728147080391,-500.0,0.00039178,30]
[339898128,1728147080401,-500.0,0.00039178,30]
[339898129,1728147080411,-500.0,0.00039178,30]
[339898130,1728147080421,-985.84,0.00039178,30]
[339898131,1728147080431,-500.0,0.00039178,30]
[339898132,1728147080440,-500.0,0.00039178,30]
[339898133,1728147080451,-500.0,0.00039178,30]
[339898134,1728147080465,-500.0,0.00039178,30]
[339898135,1728147080474,-500.0,0.00039178,30]
[339898136,1728147080484,-1049.3,0.00039178,30]
[339898137,1728147080494,-1294.19,0.00039178,30]
[339898138,1728147080505,-687.14,0.00039178,30]
[339898139,1728147080514,-500.0,0.00039178,30]
[339898140,1728147080524,-793.27,0.00039178,30]
[339898141,1728147080533,-500.0,0.00039178,30]
[339898142,1728147080543,-500.0,0.00039178,30]
[339898143,1728147080552,-500.0,0.00039178,30]
[339898144,1728147080561,-500.0,0.00039178,30]
[339898145,1728147080571,-2888.1,0.00039178,30]
[339898146,1728147080580,-500.0,0.00039178,30]
[339898147,1728147080589,-500.0,0.00039178,30]
[339898148,1728147080599,-500.0,0.00039178,30]
[339898149,1728147080608,-500.0,0.00039178,30]
[339898150,1728147080618,-989.98,0.00039178,30]
[339898151,1728147080628,-500.0,0.00039178,30]
[339898152,1728147080637,-500.0,0.00039178,30]
[339898153,1728147080647,-500.0,0.00039178,30]
[339898154,1728147080655,-1432.95,0.00039178,30]
[339898155,1728147080665,-724.21,0.00039178,30]
[339898156,1728147080674,-550.68,0.00039178,30]
[339898157,1728147080684,-543.28,0.00039178,30]
[339898158,1728147080693,-500.0,0.00039178,30]
[339898159,1728147080702,-753.39,0.00039178,30]
[339898160,1728147080715,-807.23,0.00039178,30]
[339898161,1728147080724,-500.0,0.00039178,30]
[339898162,1728147080733,-500.0,0.00039178,30]
[339898163,1728147080743,-500.0,0.00039178,30]
[339898164,1728147080752,-708.64,0.00039178,30]
[339898165,1728147080763,-562.5,0.00039178,30]
[339898166,1728147080772,-500.0,0.00039178,30]
[339898167,1728147080781,-500.0,0.00039178,30]
[339898168,1728147080790,-623.71565388,0.00039178,30]
[339898169,1728147080800,-500.0,0.00039178,30]
[339898170,1728147080810,-500.0,0.00039178,30]
[339898171,1728147080819,-687.72,0.00039178,30]
[339898172,1728147080830,-1195.82,0.00039178,30]
[339898173,1728147080839,-500.0,0.00039178,30]
[339898174,1728147080850,-905.32,0.00039178,7]
[339898175,1728147080860,-968.05,0.00039178,30]
[339898176,1728147080869,-1289.36,0.00039178,30]
[339898177,1728147080879,-1417.19,0.00039178,30]
[339898178,1728147080890,-763.68,0.00039178,30]
[339898179,1728147080899,-500.0,0.00039178,30]
[339898180,1728147080909,-500.0,0.00039178,30]
[339898181,1728147080919,-500.0,0.00039178,30]
[339898182,1728147080928,-1687.35,0.00039178,30]
[339898183,1728147080937,-500.0,0.00039178,30]
[339898184,1728147080946,-888.0,0.00039178,120]
[339898185,1728147080955,-500.0,0.00039178,30]
[339898186,1728147080968,-785.36,0.00039178,30]
[339898187,1728147080977,-500.0,0.00039178,30]
[339898188,1728147080987,-500.0,0.00039178,30]
[339898189,1728147080996,-500.0,0.00039178,30]
[339898190,1728147081006,-500.0,0.00039178,30]
[339898191,1728147081016,-1179.64,0.00039178,30]
[339898192,1728147081025,-516.69591543,0.00039178,30]
[339898193,1728147081034,-582.36,0.00039178,30]
[339898194,1728147081044,-500.0,0.00039178,30]
[339898195,1728147081053,-500.0,0.00039178,30]
[339898196,1728147081063,-500.0,0.00039178,30]
[339898197,1728147081073,-643.53,0.00039178,30]
[339898198,1728147081082,-1536.92,0.00039178,30]
[339898199,1728147081092,-500.0,0.00039178,30]
[339898200,1728147081102,-500.0,0.00039178,30]
[339898201,1728147081111,-501.94321269,0.00039178,30]
[339898202,1728147081122,-711.86,0.00039178,30]
[339898203,1728147081132,-1213.33,0.00039178,30]
[339898204,1728147081143,-533.33,0.00039178,30]
[339898205,1728147081152,-500.0,0.00039178,30]
[339898206,1728147081162,-1142.18,0.00039178,30]
[339898207,1728147081172,-500.0,0.00039178,30]
[339898208,1728147081182,-786.32,0.00039178,30]
[339898209,1728147081193,-500.0,0.00039178,30]
[339898210,1728147081202,-1479.11,0.00039178,30]
[339898211,1728147081213,-500.0,0.00039178,30]
[339898212,1728147081222,-500.0,0.00039178,30]
[339898213,1728147081232,-649.26,0.00039178,30]
[339898214,1728147081241,-500.0,0.00039178,30]
[339898215,1728147081251,-903.52,0.00039178,30]
[339898216,1728147081261,-500.0,0.00039178,30]
[339898217,1728147081271,-915.1,0.00039178,30]
[339898218,1728147081280,-500.0,0.00039178,30]
[339898219,1728147081290,-500.0,0.00039178,30]
[339898220,1728147081299,-642.95,0.00039178,30]
[339898221,1728147081309,-500.0,0.00039178,30]
[339898222,1728147081319,-500.0,0.00039178,30]
[339898223,1728147081329,-931.55,0.00039178,30]
[339898224,1728147081342,-500.0,0.00039178,30]
[339898225,1728147081354,-500.0,0.00039178,30]
[339898226,1728147081363,-1521.03,0.00039178,30]
[339898227,1728147081373,-500.0,0.00039178,30]
[339898228,1728147081382,-500.0,0.00039178,30]
[339898229,1728147081391,-500.0,0.00039178,30]
[339898230,1728147081401,-1032.8,0.00039178,30]
[339898231,1728147081411,-1011.56,0.00039178,30]
[339898232,1728147081420,-500.0,0.00039178,30]
[339898233,1728147081430,-500.0,0.00039178,30]
[339898234,1728147081439,-500.0,0.00039178,30]
[339898235,1728147081449,-500.0,0.00039178,30]
[339898236,1728147081461,-901.49,0.00039178,30]
[339898237,1728147081476,-500.0,0.00039178,30]
[339898238,1728147081486,-1061.61,0.00039178,30]
[339898239,1728147081495,-1304.21,0.00039178,30]
[339898240,1728147081504,-701.97,0.00039178,30]
[339898241,1728147081514,-500.0,0.00039178,30]
[339898242,1728147081523,-534.36,0.00039178,30]
[339898243,1728147081532,-589.66,0.00039178,30]
[339898244,1728147081542,-512.82,0.00039178,30]
[339898245,1728147081551,-500.0,0.00039178,30]
[339898246,1728147081560,-500.0,0.00039178,30]
[339898247,1728147081570,-500.0,0.00039178,30]
[339898248,1728147081579,-500.0,0.00039178,30]
[339898249,1728147081588,-1198.94,0.00039178,30]
[339898250,1728147081597,-500.0,0.00039178,30]
[339898251,1728147081606,-836.31,0.00039178,30]
[339898252,1728147081616,-908.97,0.00039178,30]
[339898253,1728147081626,-714.05,0.00039178,30]